Workbook

Sheet Voorblad
N24: Voorbeeld materiaal - Elf-proef
N33: © 2016, G-Info/G. Verbruggen
N34: www.ginfo.nl

Sheet Vb1
A1: BankNr | B1: ElfPrfFn | C1: ElfProef | D1: Get1 | E1: Rest | F1: Get2 | G1: Rest | H1: Get3 | I1: Rest | J1: Get4 | K1: Rest | L1: Get5 | M1: Rest | N1: Get6 | O1: Rest | P1: Get7 | Q1: Rest | R1: Get8 | S1: Rest | T1: Get9 | U1: Rest | V1: Get10
A2: 736160221 | B2: =ElfProef1(A2) -> ok | C2: =IF(MOD(D2*1+F2*2+H2*3+J2*4+L2*5+N2*6+P2*7+R2*8+T2*9+V2*10,11)=0,"ok","Geen juist nr") -> ok | D2: =MOD(A2,10) -> 1 | E2: =TRUNC(A2/10) -> 73616022 | F2: =MOD(E2,10) -> 2 | G2: =TRUNC(E2/10) -> 7361602 | H2: =MOD(G2,10) -> 2 | I2: =TRUNC(G2/10) -> 736160 | J2: =MOD(I2,10) -> 0 | K2: =TRUNC(I2/10) -> 73616 | L2: =MOD(K2,10) -> 6 | M2: =TRUNC(K2/10) -> 7361 | N2: =MOD(M2,10) -> 1 | O2: =TRUNC(M2/10) -> 736 | P2: =MOD(O2,10) -> 6 | Q2: =TRUNC(O2/10) -> 73 | R2: =MOD(Q2,10) -> 3 | S2: =TRUNC(Q2/10) -> 7 | T2: =MOD(S2,10) -> 7 | U2: =TRUNC(S2/10) -> 0 | V2: =MOD(U2,10) -> 0
A3: 736160222 | B3: =ElfProef1(A3) -> ONGELDIG | C3: Geen juist nr | D3: =MOD(A3,10) -> 2 | E3: =TRUNC(A3/10) -> 73616022 | F3: =MOD(E3,10) -> 2 | G3: =TRUNC(E3/10) -> 7361602 | H3: =MOD(G3,10) -> 2 | I3: =TRUNC(G3/10) -> 736160 | J3: =MOD(I3,10) -> 0 | K3: =TRUNC(I3/10) -> 73616 | L3: =MOD(K3,10) -> 6 | M3: =TRUNC(K3/10) -> 7361 | N3: =MOD(M3,10) -> 1 | O3: =TRUNC(M3/10) -> 736 | P3: =MOD(O3,10) -> 6 | Q3: =TRUNC(O3/10) -> 73 | R3: =MOD(Q3,10) -> 3 | S3: =TRUNC(Q3/10) -> 7 | T3: =MOD(S3,10) -> 7 | U3: =TRUNC(S3/10) -> 0 | V3: =MOD(U3,10) -> 0
A4: 736160223 | B4: =ElfProef1(A4) -> ONGELDIG | C4: Geen juist nr | D4: =MOD(A4,10) -> 3 | E4: =TRUNC(A4/10) -> 73616022 | F4: =MOD(E4,10) -> 2 | G4: =TRUNC(E4/10) -> 7361602 | H4: =MOD(G4,10) -> 2 | I4: =TRUNC(G4/10) -> 736160 | J4: =MOD(I4,10) -> 0 | K4: =TRUNC(I4/10) -> 73616 | L4: =MOD(K4,10) -> 6 | M4: =TRUNC(K4/10) -> 7361 | N4: =MOD(M4,10) -> 1 | O4: =TRUNC(M4/10) -> 736 | P4: =MOD(O4,10) -> 6 | Q4: =TRUNC(O4/10) -> 73 | R4: =MOD(Q4,10) -> 3 | S4: =TRUNC(Q4/10) -> 7 | T4: =MOD(S4,10) -> 7 | U4: =TRUNC(S4/10) -> 0 | V4: =MOD(U4,10) -> 0
A5: 736160224 | B5: ONGELDIG | C5: Geen juist nr | D5: 4 | E5: 73616022 | F5: 2 | G5: 7361602 | H5: 2 | I5: 736160 | J5: 0 | K5: 73616 | L5: 6 | M5: 7361 | N5: 1 | O5: 736 | P5: 6 | Q5: 73 | R5: 3 | S5: 7 | T5: 7 | U5: 0 | V5: 0
A6: 736160225 | B6: ONGELDIG | C6: Geen juist nr | D6: 5 | E6: 73616022 | F6: 2 | G6: 7361602 | H6: 2 | I6: 736160 | J6: 0 | K6: 73616 | L6: 6 | M6: 7361 | N6: 1 | O6: 736 | P6: 6 | Q6: 73 | R6: 3 | S6: 7 | T6: 7 | U6: 0 | V6: 0
A7: 736160226 | B7: ONGELDIG | C7: Geen juist nr | D7: 6 | E7: 73616022 | F7: 2 | G7: 7361602 | H7: 2 | I7: 736160 | J7: 0 | K7: 73616 | L7: 6 | M7: 7361 | N7: 1 | O7: 736 | P7: 6 | Q7: 73 | R7: 3 | S7: 7 | T7: 7 | U7: 0 | V7: 0
A8: 736160227 | B8: ONGELDIG | C8: Geen juist nr | D8: 7 | E8: 73616022 | F8: 2 | G8: 7361602 | H8: 2 | I8: 736160 | J8: 0 | K8: 73616 | L8: 6 | M8: 7361 | N8: 1 | O8: 736 | P8: 6 | Q8: 73 | R8: 3 | S8: 7 | T8: 7 | U8: 0 | V8: 0
A9: 736160228 | B9: =ElfProef1(A9) -> ONGELDIG | C9: Geen juist nr | D9: 8 | E9: 73616022 | F9: 2 | G9: 7361602 | H9: 2 | I9: 736160 | J9: 0 | K9: 73616 | L9: 6 | M9: 7361 | N9: 1 | O9: 736 | P9: 6 | Q9: 73 | R9: 3 | S9: 7 | T9: 7 | U9: 0 | V9: 0
A10: 736160229 | B10: ONGELDIG | C10: Geen juist nr | D10: 9 | E10: 73616022 | F10: 2 | G10: 7361602 | H10: 2 | I10: 736160 | J10: 0 | K10: 73616 | L10: 6 | M10: 7361 | N10: 1 | O10: 736 | P10: 6 | Q10: 73 | R10: 3 | S10: 7 | T10: 7 | U10: 0 | V10: 0
A11: 736160230 | B11: ONGELDIG | C11: Geen juist nr | D11: 0 | E11: 73616023 | F11: 3 | G11: 7361602 | H11: 2 | I11: 736160 | J11: 0 | K11: 73616 | L11: 6 | M11: 7361 | N11: 1 | O11: 736 | P11: 6 | Q11: 73 | R11: 3 | S11: 7 | T11: 7 | U11: 0 | V11: 0
A12: 736160231 | B12: ONGELDIG | C12: Geen juist nr | D12: 1 | E12: 73616023 | F12: 3 | G12: 7361602 | H12: 2 | I12: 736160 | J12: 0 | K12: 73616 | L12: 6 | M12: 7361 | N12: 1 | O12: 736 | P12: 6 | Q12: 73 | R12: 3 | S12: 7 | T12: 7 | U12: 0 | V12: 0
A13: 736160232 | B13: ONGELDIG | C13: Geen juist nr | D13: 2 | E13: 73616023 | F13: 3 | G13: 7361602 | H13: 2 | I13: 736160 | J13: 0 | K13: 73616 | L13: 6 | M13: 7361 | N13: 1 | O13: 736 | P13: 6 | Q13: 73 | R13: 3 | S13: 7 | T13: 7 | U13: 0 | V13: 0
A14: 736160233 | B14: ONGELDIG | C14: Geen juist nr | D14: 3 | E14: 73616023 | F14: 3 | G14: 7361602 | H14: 2 | I14: 736160 | J14: 0 | K14: 73616 | L14: 6 | M14: 7361 | N14: 1 | O14: 736 | P14: 6 | Q14: 73 | R14: 3 | S14: 7 | T14: 7 | U14: 0 | V14: 0
A15: 736160234 | B15: ONGELDIG | C15: Geen juist nr | D15: 4 | E15: 73616023 | F15: 3 | G15: 7361602 | H15: 2 | I15: 736160 | J15: 0 | K15: 73616 | L15: 6 | M15: 7361 | N15: 1 | O15: 736 | P15: 6 | Q15: 73 | R15: 3 | S15: 7 | T15: 7 | U15: 0 | V15: 0
A16: 736160235 | B16: ONGELDIG | C16: Geen juist nr | D16: 5 | E16: 73616023 | F16: 3 | G16: 7361602 | H16: 2 | I16: 736160 | J16: 0 | K16: 73616 | L16: 6 | M16: 7361 | N16: 1 | O16: 736 | P16: 6 | Q16: 73 | R16: 3 | S16: 7 | T16: 7 | U16: 0 | V16: 0
A17: 736160236 | B17: ONGELDIG | C17: Geen juist nr | D17: 6 | E17: 73616023 | F17: 3 | G17: 7361602 | H17: 2 | I17: 736160 | J17: 0 | K17: 73616 | L17: 6 | M17: 7361 | N17: 1 | O17: 736 | P17: 6 | Q17: 73 | R17: 3 | S17: 7 | T17: 7 | U17: 0 | V17: 0
A18: 736160237 | B18: ONGELDIG | C18: Geen juist nr | D18: 7 | E18: 73616023 | F18: 3 | G18: 7361602 | H18: 2 | I18: 736160 | J18: 0 | K18: 73616 | L18: 6 | M18: 7361 | N18: 1 | O18: 736 | P18: 6 | Q18: 73 | R18: 3 | S18: 7 | T18: 7 | U18: 0 | V18: 0
A19: 736160238 | B19: ONGELDIG | C19: Geen juist nr | D19: 8 | E19: 73616023 | F19: 3 | G19: 7361602 | H19: 2 | I19: 736160 | J19: 0 | K19: 73616 | L19: 6 | M19: 7361 | N19: 1 | O19: 736 | P19: 6 | Q19: 73 | R19: 3 | S19: 7 | T19: 7 | U19: 0 | V19: 0
A20: 736160239 | B20: ONGELDIG | C20: Geen juist nr | D20: 9 | E20: 73616023 | F20: 3 | G20: 7361602 | H20: 2 | I20: 736160 | J20: 0 | K20: 73616 | L20: 6 | M20: 7361 | N20: 1 | O20: 736 | P20: 6 | Q20: 73 | R20: 3 | S20: 7 | T20: 7 | U20: 0 | V20: 0
A21: 736160240 | B21: ONGELDIG | C21: Geen juist nr | D21: 0 | E21: 73616024 | F21: 4 | G21: 7361602 | H21: 2 | I21: 736160 | J21: 0 | K21: 73616 | L21: 6 | M21: 7361 | N21: 1 | O21: 736 | P21: 6 | Q21: 73 | R21: 3 | S21: 7 | T21: 7 | U21: 0 | V21: 0
A22: 736160241 | B22: ONGELDIG | C22: Geen juist nr | D22: 1 | E22: 73616024 | F22: 4 | G22: 7361602 | H22: 2 | I22: 736160 | J22: 0 | K22: 73616 | L22: 6 | M22: 7361 | N22: 1 | O22: 736 | P22: 6 | Q22: 73 | R22: 3 | S22: 7 | T22: 7 | U22: 0 | V22: 0
A23: 736160242 | B23: ONGELDIG | C23: Geen juist nr | D23: 2 | E23: 73616024 | F23: 4 | G23: 7361602 | H23: 2 | I23: 736160 | J23: 0 | K23: 73616 | L23: 6 | M23: 7361 | N23: 1 | O23: 736 | P23: 6 | Q23: 73 | R23: 3 | S23: 7 | T23: 7 | U23: 0 | V23: 0
A24: 736160243 | B24: ONGELDIG | C24: Geen juist nr | D24: 3 | E24: 73616024 | F24: 4 | G24: 7361602 | H24: 2 | I24: 736160 | J24: 0 | K24: 73616 | L24: 6 | M24: 7361 | N24: 1 | O24: 736 | P24: 6 | Q24: 73 | R24: 3 | S24: 7 | T24: 7 | U24: 0 | V24: 0
A25: 736160244 | B25: ONGELDIG | C25: Geen juist nr | D25: 4 | E25: 73616024 | F25: 4 | G25: 7361602 | H25: 2 | I25: 736160 | J25: 0 | K25: 73616 | L25: 6 | M25: 7361 | N25: 1 | O25: 736 | P25: 6 | Q25: 73 | R25: 3 | S25: 7 | T25: 7 | U25: 0 | V25: 0
A26: 736160245 | B26: ONGELDIG | C26: Geen juist nr | D26: 5 | E26: 73616024 | F26: 4 | G26: 7361602 | H26: 2 | I26: 736160 | J26: 0 | K26: 73616 | L26: 6 | M26: 7361 | N26: 1 | O26: 736 | P26: 6 | Q26: 73 | R26: 3 | S26: 7 | T26: 7 | U26: 0 | V26: 0
A27: 736160246 | B27: ONGELDIG | C27: Geen juist nr | D27: 6 | E27: 73616024 | F27: 4 | G27: 7361602 | H27: 2 | I27: 736160 | J27: 0 | K27: 73616 | L27: 6 | M27: 7361 | N27: 1 | O27: 736 | P27: 6 | Q27: 73 | R27: 3 | S27: 7 | T27: 7 | U27: 0 | V27: 0
A28: 736160247 | B28: ONGELDIG | C28: Geen juist nr | D28: 7 | E28: 73616024 | F28: 4 | G28: 7361602 | H28: 2 | I28: 736160 | J28: 0 | K28: 73616 | L28: 6 | M28: 7361 | N28: 1 | O28: 736 | P28: 6 | Q28: 73 | R28: 3 | S28: 7 | T28: 7 | U28: 0 | V28: 0
A29: 736160248 | B29: ok | C29: ok | D29: 8 | E29: 73616024 | F29: 4 | G29: 7361602 | H29: 2 | I29: 736160 | J29: 0 | K29: 73616 | L29: 6 | M29: 7361 | N29: 1 | O29: 736 | P29: 6 | Q29: 73 | R29: 3 | S29: 7 | T29: 7 | U29: 0 | V29: 0
A30: 736160249 | B30: ONGELDIG | C30: Geen juist nr | D30: 9 | E30: 73616024 | F30: 4 | G30: 7361602 | H30: 2 | I30: 736160 | J30: 0 | K30: 73616 | L30: 6 | M30: 7361 | N30: 1 | O30: 736 | P30: 6 | Q30: 73 | R30: 3 | S30: 7 | T30: 7 | U30: 0 | V30: 0
A31: 736160250 | B31: ONGELDIG | C31: Geen juist nr | D31: 0 | E31: 73616025 | F31: 5 | G31: 7361602 | H31: 2 | I31: 736160 | J31: 0 | K31: 73616 | L31: 6 | M31: 7361 | N31: 1 | O31: 736 | P31: 6 | Q31: 73 | R31: 3 | S31: 7 | T31: 7 | U31: 0 | V31: 0
A32: 736160251 | B32: ONGELDIG | C32: Geen juist nr | D32: 1 | E32: 73616025 | F32: 5 | G32: 7361602 | H32: 2 | I32: 736160 | J32: 0 | K32: 73616 | L32: 6 | M32: 7361 | N32: 1 | O32: 736 | P32: 6 | Q32: 73 | R32: 3 | S32: 7 | T32: 7 | U32: 0 | V32: 0
A33: 736160252 | B33: ONGELDIG | C33: Geen juist nr | D33: 2 | E33: 73616025 | F33: 5 | G33: 7361602 | H33: 2 | I33: 736160 | J33: 0 | K33: 73616 | L33: 6 | M33: 7361 | N33: 1 | O33: 736 | P33: 6 | Q33: 73 | R33: 3 | S33: 7 | T33: 7 | U33: 0 | V33: 0
A34: 736160253 | B34: ONGELDIG | C34: Geen juist nr | D34: 3 | E34: 73616025 | F34: 5 | G34: 7361602 | H34: 2 | I34: 736160 | J34: 0 | K34: 73616 | L34: 6 | M34: 7361 | N34: 1 | O34: 736 | P34: 6 | Q34: 73 | R34: 3 | S34: 7 | T34: 7 | U34: 0 | V34: 0
A35: 736160254 | B35: ONGELDIG | C35: Geen juist nr | D35: 4 | E35: 73616025 | F35: 5 | G35: 7361602 | H35: 2 | I35: 736160 | J35: 0 | K35: 73616 | L35: 6 | M35: 7361 | N35: 1 | O35: 736 | P35: 6 | Q35: 73 | R35: 3 | S35: 7 | T35: 7 | U35: 0 | V35: 0
A36: 736160255 | B36: ONGELDIG | C36: Geen juist nr | D36: 5 | E36: 73616025 | F36: 5 | G36: 7361602 | H36: 2 | I36: 736160 | J36: 0 | K36: 73616 | L36: 6 | M36: 7361 | N36: 1 | O36: 736 | P36: 6 | Q36: 73 | R36: 3 | S36: 7 | T36: 7 | U36: 0 | V36: 0
A37: 736160256 | B37: ok | C37: ok | D37: 6 | E37: 73616025 | F37: 5 | G37: 7361602 | H37: 2 | I37: 736160 | J37: 0 | K37: 73616 | L37: 6 | M37: 7361 | N37: 1 | O37: 736 | P37: 6 | Q37: 73 | R37: 3 | S37: 7 | T37: 7 | U37: 0 | V37: 0
A38: 736160257 | B38: ONGELDIG | C38: Geen juist nr | D38: 7 | E38: 73616025 | F38: 5 | G38: 7361602 | H38: 2 | I38: 736160 | J38: 0 | K38: 73616 | L38: 6 | M38: 7361 | N38: 1 | O38: 736 | P38: 6 | Q38: 73 | R38: 3 | S38: 7 | T38: 7 | U38: 0 | V38: 0
A39: 736160258 | B39: ONGELDIG | C39: Geen juist nr | D39: 8 | E39: 73616025 | F39: 5 | G39: 7361602 | H39: 2 | I39: 736160 | J39: 0 | K39: 73616 | L39: 6 | M39: 7361 | N39: 1 | O39: 736 | P39: 6 | Q39: 73 | R39: 3 | S39: 7 | T39: 7 | U39: 0 | V39: 0
A40: 736160259 | B40: ONGELDIG | C40: Geen juist nr | D40: 9 | E40: 73616025 | F40: 5 | G40: 7361602 | H40: 2 | I40: 736160 | J40: 0 | K40: 73616 | L40: 6 | M40: 7361 | N40: 1 | O40: 736 | P40: 6 | Q40: 73 | R40: 3 | S40: 7 | T40: 7 | U40: 0 | V40: 0
A41: 736160260 | B41: ONGELDIG | C41: Geen juist nr | D41: 0 | E41: 73616026 | F41: 6 | G41: 7361602 | H41: 2 | I41: 736160 | J41: 0 | K41: 73616 | L41: 6 | M41: 7361 | N41: 1 | O41: 736 | P41: 6 | Q41: 73 | R41: 3 | S41: 7 | T41: 7 | U41: 0 | V41: 0
A42: 736160261 | B42: ONGELDIG | C42: Geen juist nr | D42: 1 | E42: 73616026 | F42: 6 | G42: 7361602 | H42: 2 | I42: 736160 | J42: 0 | K42: 73616 | L42: 6 | M42: 7361 | N42: 1 | O42: 736 | P42: 6 | Q42: 73 | R42: 3 | S42: 7 | T42: 7 | U42: 0 | V42: 0
A43: 736160262 | B43: ONGELDIG | C43: Geen juist nr | D43: 2 | E43: 73616026 | F43: 6 | G43: 7361602 | H43: 2 | I43: 736160 | J43: 0 | K43: 73616 | L43: 6 | M43: 7361 | N43: 1 | O43: 736 | P43: 6 | Q43: 73 | R43: 3 | S43: 7 | T43: 7 | U43: 0 | V43: 0
A44: 736160263 | B44: ONGELDIG | C44: Geen juist nr | D44: 3 | E44: 73616026 | F44: 6 | G44: 7361602 | H44: 2 | I44: 736160 | J44: 0 | K44: 73616 | L44: 6 | M44: 7361 | N44: 1 | O44: 736 | P44: 6 | Q44: 73 | R44: 3 | S44: 7 | T44: 7 | U44: 0 | V44: 0
A45: 736160264 | B45: ok | C45: ok | D45: 4 | E45: 73616026 | F45: 6 | G45: 7361602 | H45: 2 | I45: 736160 | J45: 0 | K45: 73616 | L45: 6 | M45: 7361 | N45: 1 | O45: 736 | P45: 6 | Q45: 73 | R45: 3 | S45: 7 | T45: 7 | U45: 0 | V45: 0
A46: 123456789 | B46: ok | C46: ok | D46: 9 | E46: 12345678 | F46: 8 | G46: 1234567 | H46: 7 | I46: 123456 | J46: 6 | K46: 12345 | L46: 5 | M46: 1234 | N46: 4 | O46: 123 | P46: 3 | Q46: 12 | R46: 2 | S46: 1 | T46: 1 | U46: 0 | V46: 0
A47: 1234567890 | B47: ONGELDIG | C47: Geen juist nr | D47: 0 | E47: 123456789 | F47: 9 | G47: 12345678 | H47: 8 | I47: 1234567 | J47: 7 | K47: 123456 | L47: 6 | M47: 12345 | N47: 5 | O47: 1234 | P47: 4 | Q47: 123 | R47: 3 | S47: 12 | T47: 2 | U47: 1 | V47: 1
A48: =A47+1 -> 1234567891 | B48: ONGELDIG | C48: Geen juist nr | D48: 1 | E48: 123456789 | F48: 9 | G48: 12345678 | H48: 8 | I48: 1234567 | J48: 7 | K48: 123456 | L48: 6 | M48: 12345 | N48: 5 | O48: 1234 | P48: 4 | Q48: 123 | R48: 3 | S48: 12 | T48: 2 | U48: 1 | V48: 1
A49: =A48+1 -> 1234567892 | B49: ONGELDIG | C49: Geen juist nr | D49: 2 | E49: 123456789 | F49: 9 | G49: 12345678 | H49: 8 | I49: 1234567 | J49: 7 | K49: 123456 | L49: 6 | M49: 12345 | N49: 5 | O49: 1234 | P49: 4 | Q49: 123 | R49: 3 | S49: 12 | T49: 2 | U49: 1 | V49: 1
A50: 1234567893 | B50: ONGELDIG | C50: Geen juist nr | D50: 3 | E50: 123456789 | F50: 9 | G50: 12345678 | H50: 8 | I50: 1234567 | J50: 7 | K50: 123456 | L50: 6 | M50: 12345 | N50: 5 | O50: 1234 | P50: 4 | Q50: 123 | R50: 3 | S50: 12 | T50: 2 | U50: 1 | V50: 1
A51: 1234567894 | B51: ONGELDIG | C51: Geen juist nr | D51: 4 | E51: 123456789 | F51: 9 | G51: 12345678 | H51: 8 | I51: 1234567 | J51: 7 | K51: 123456 | L51: 6 | M51: 12345 | N51: 5 | O51: 1234 | P51: 4 | Q51: 123 | R51: 3 | S51: 12 | T51: 2 | U51: 1 | V51: 1
A52: 1234567895 | B52: ONGELDIG | C52: Geen juist nr | D52: 5 | E52: 123456789 | F52: 9 | G52: 12345678 | H52: 8 | I52: 1234567 | J52: 7 | K52: 123456 | L52: 6 | M52: 12345 | N52: 5 | O52: 1234 | P52: 4 | Q52: 123 | R52: 3 | S52: 12 | T52: 2 | U52: 1 | V52: 1
A53: 1234567896 | B53: ONGELDIG | C53: Geen juist nr | D53: 6 | E53: 123456789 | F53: 9 | G53: 12345678 | H53: 8 | I53: 1234567 | J53: 7 | K53: 123456 | L53: 6 | M53: 12345 | N53: 5 | O53: 1234 | P53: 4 | Q53: 123 | R53: 3 | S53: 12 | T53: 2 | U53: 1 | V53: 1
A54: 1234567897 | B54: ONGELDIG | C54: Geen juist nr | D54: 7 | E54: 123456789 | F54: 9 | G54: 12345678 | H54: 8 | I54: 1234567 | J54: 7 | K54: 123456 | L54: 6 | M54: 12345 | N54: 5 | O54: 1234 | P54: 4 | Q54: 123 | R54: 3 | S54: 12 | T54: 2 | U54: 1 | V54: 1
A55: 1234567898 | B55: ONGELDIG | C55: Geen juist nr | D55: 8 | E55: 123456789 | F55: 9 | G55: 12345678 | H55: 8 | I55: 1234567 | J55: 7 | K55: 123456 | L55: 6 | M55: 12345 | N55: 5 | O55: 1234 | P55: 4 | Q55: 123 | R55: 3 | S55: 12 | T55: 2 | U55: 1 | V55: 1
A56: 1234567899 | B56: ONGELDIG | C56: Geen juist nr | D56: 9 | E56: 123456789 | F56: 9 | G56: 12345678 | H56: 8 | I56: 1234567 | J56: 7 | K56: 123456 | L56: 6 | M56: 12345 | N56: 5 | O56: 1234 | P56: 4 | Q56: 123 | R56: 3 | S56: 12 | T56: 2 | U56: 1 | V56: 1
A57: 1234567900 | B57: ONGELDIG | C57: Geen juist nr | D57: 0 | E57: 123456790 | F57: 0 | G57: 12345679 | H57: 9 | I57: 1234567 | J57: 7 | K57: 123456 | L57: 6 | M57: 12345 | N57: 5 | O57: 1234 | P57: 4 | Q57: 123 | R57: 3 | S57: 12 | T57: 2 | U57: 1 | V57: 1
A58: 1234567901 | B58: ONGELDIG | C58: Geen juist nr | D58: 1 | E58: 123456790 | F58: 0 | G58: 12345679 | H58: 9 | I58: 1234567 | J58: 7 | K58: 123456 | L58: 6 | M58: 12345 | N58: 5 | O58: 1234 | P58: 4 | Q58: 123 | R58: 3 | S58: 12 | T58: 2 | U58: 1 | V58: 1
A59: 1234567902 | B59: ONGELDIG | C59: Geen juist nr | D59: 2 | E59: 123456790 | F59: 0 | G59: 12345679 | H59: 9 | I59: 1234567 | J59: 7 | K59: 123456 | L59: 6 | M59: 12345 | N59: 5 | O59: 1234 | P59: 4 | Q59: 123 | R59: 3 | S59: 12 | T59: 2 | U59: 1 | V59: 1
A60: 1234567903 | B60: ok | C60: ok | D60: 3 | E60: 123456790 | F60: 0 | G60: 12345679 | H60: 9 | I60: 1234567 | J60: 7 | K60: 123456 | L60: 6 | M60: 12345 | N60: 5 | O60: 1234 | P60: 4 | Q60: 123 | R60: 3 | S60: 12 | T60: 2 | U60: 1 | V60: 1
A61: 1234567904 | B61: ONGELDIG | C61: Geen juist nr | D61: 4 | E61: 123456790 | F61: 0 | G61: 12345679 | H61: 9 | I61: 1234567 | J61: 7 | K61: 123456 | L61: 6 | M61: 12345 | N61: 5 | O61: 1234 | P61: 4 | Q61: 123 | R61: 3 | S61: 12 | T61: 2 | U61: 1 | V61: 1
A62: 1234567905 | B62: ONGELDIG | C62: Geen juist nr | D62: 5 | E62: 123456790 | F62: 0 | G62: 12345679 | H62: 9 | I62: 1234567 | J62: 7 | K62: 123456 | L62: 6 | M62: 12345 | N62: 5 | O62: 1234 | P62: 4 | Q62: 123 | R62: 3 | S62: 12 | T62: 2 | U62: 1 | V62: 1
A63: 1234567906 | B63: ONGELDIG | C63: Geen juist nr | D63: 6 | E63: 123456790 | F63: 0 | G63: 12345679 | H63: 9 | I63: 1234567 | J63: 7 | K63: 123456 | L63: 6 | M63: 12345 | N63: 5 | O63: 1234 | P63: 4 | Q63: 123 | R63: 3 | S63: 12 | T63: 2 | U63: 1 | V63: 1
A64: 1234567907 | B64: ONGELDIG | C64: Geen juist nr | D64: 7 | E64: 123456790 | F64: 0 | G64: 12345679 | H64: 9 | I64: 1234567 | J64: 7 | K64: 123456 | L64: 6 | M64: 12345 | N64: 5 | O64: 1234 | P64: 4 | Q64: 123 | R64: 3 | S64: 12 | T64: 2 | U64: 1 | V64: 1
A65: 1234567908 | B65: ONGELDIG | C65: Geen juist nr | D65: 8 | E65: 123456790 | F65: 0 | G65: 12345679 | H65: 9 | I65: 1234567 | J65: 7 | K65: 123456 | L65: 6 | M65: 12345 | N65: 5 | O65: 1234 | P65: 4 | Q65: 123 | R65: 3 | S65: 12 | T65: 2 | U65: 1 | V65: 1
A66: 1234567909 | B66: ONGELDIG | C66: =IF(MOD(D66*1+F66*2+H66*3+J66*4+L66*5+N66*6+P66*7+R66*8+T66*9+V66*10,11)=0,"ok","Geen juist nr") -> Geen juist nr | D66: 9 | E66: 123456790 | F66: 0 | G66: 12345679 | H66: 9 | I66: 1234567 | J66: 7 | K66: 123456 | L66: 6 | M66: 12345 | N66: 5 | O66: 1234 | P66: 4 | Q66: 123 | R66: 3 | S66: 12 | T66: 2 | U66: 1 | V66: 1
A67: 1234567910 | B67: ONGELDIG | C67: Geen juist nr | D67: 0 | E67: 123456791 | F67: 1 | G67: 12345679 | H67: 9 | I67: 1234567 | J67: 7 | K67: 123456 | L67: 6 | M67: 12345 | N67: 5 | O67: 1234 | P67: 4 | Q67: 123 | R67: 3 | S67: 12 | T67: 2 | U67: 1 | V67: 1
A68: 1234567911 | B68: =ElfProef1(A68) -> ok | C68: ok | D68: =MOD(A68,10) -> 1 | E68: =TRUNC(A68/10) -> 123456791 | F68: =MOD(E68,10) -> 1 | G68: =TRUNC(E68/10) -> 12345679 | H68: =MOD(G68,10) -> 9 | I68: =TRUNC(G68/10) -> 1234567 | J68: =MOD(I68,10) -> 7 | K68: =TRUNC(I68/10) -> 123456 | L68: =MOD(K68,10) -> 6 | M68: =TRUNC(K68/10) -> 12345 | N68: =MOD(M68,10) -> 5 | O68: =TRUNC(M68/10) -> 1234 | P68: =MOD(O68,10) -> 4 | Q68: =TRUNC(O68/10) -> 123 | R68: =MOD(Q68,10) -> 3 | S68: =TRUNC(Q68/10) -> 12 | T68: =MOD(S68,10) -> 2 | U68: =TRUNC(S68/10) -> 1 | V68: =MOD(U68,10) -> 1
A69: 1234567912 | B69: ONGELDIG | C69: Geen juist nr | D69: 2 | E69: 123456791 | F69: 1 | G69: 12345679 | H69: 9 | I69: 1234567 | J69: 7 | K69: 123456 | L69: 6 | M69: 12345 | N69: 5 | O69: 1234 | P69: 4 | Q69: 123 | R69: 3 | S69: 12 | T69: 2 | U69: 1 | V69: 1

Sheet Vb2
A2: BankNr | B2: BankNrTekst | C2: ElfPrfFn | D2: ElfProef | E2: 1 | F2: 2 | G2: 3 | H2: 4 | I2: 5 | J2: 6 | K2: 7 | L2: 8 | M2: 9 | N2: 10
A3: 736160221 | B3: =RIGHT("0000000000"&A3,10) -> 0736160221 | C3: =ElfProef2(A3) -> ok | D3: =IF(MOD(D4,11)=0,"ok","ONGELDIG") -> ok | E3: =MID($B$3,LEN($B$3)-E2+1,1)+0 -> 1 | F3: =MID($B$3,LEN($B$3)-F2+1,1)+0 -> 2 | G3: 2 | H3: 0 | I3: 6 | J3: 1 | K3: 6 | L3: 3 | M3: 7 | N3: 0
B4: =RIGHT(REPT("0",10)&A3,10) -> 0736160221 | C4: Som | D4: =SUM(E4:N4) -> 176 | E4: =E2*E3 -> 1 | F4: =F2*F3 -> 4 | G4: 6 | H4: 0 | I4: 30 | J4: 6 | K4: 42 | L4: 24 | M4: 63 | N4: 0
C5: SomProduct | D5: =IF(MOD(SUMPRODUCT(E2:N2,E3:N3),11)=0,"ok","ONGELDIG") -> ok

Sheet BSN
B2: BSN | C2: Controle1 | D2: Controle2
B3: 80671007 | C3: =ElfProef2(B3) -> ONGELDIG | D3: =ElfProef2(B3,TRUE) -> ok
